Cogmind - Beta 13 @@@ ROGUE MODE // 2024.07.03 @ 21:19:28 // Winter2022/Polymind Player: JackZewap Result: Destroyed by HI-H7P(R) with Subdweller Laser Performance ------------- Evolutions (0) 0 Regions Visited (2) 400 Robots Destroyed (5) 25 Value Destroyed (123) 123 Prototype IDs (0) 0 Alien Tech Used (0) 0 Bonus (1220) 1220 TOTAL SCORE: 1638 Bonus ------- Polymind Skill 1220 Cogmind --------- Core Integrity 0/250 Matter 100/100 Energy 130/150 System Corruption 0% Temperature Warm (198) Movement Core (600) Ox11 Location -10/Subcaves Parts ------- > --- POWER (1) -------- Subdweller Power Source > --- PROPULSION (1) --- (None) > --- UTILITY (4) ------ Disposable Heat Sink Subdweller Optics Scrap Shield > --- WEAPON (1) ------- Subdweller Beam Cannon > --- INVENTORY (2) ---- Light Treads Peak State ------------ > --- POWER ------------ Subdweller Power Source > --- PROPULSION ------- Subdweller Monowheel > --- UTILITY ---------- Disposable Heat Sink Subdweller Optics Scrap Shield > --- WEAPON ----------- Subdweller Machine Gun > --- INVENTORY -------- Scrap Shield Fragment Scrap Shield Fragment [Rating: 14] Favorites ----------- Power Light Ion Engine Engine Light Ion Engine Propulsion Wheel Treads Light Treads Leg Aluminum Leg Wheel Wheel Utility Improved Terrain Scanner Device Improved Terrain Scanner Storage Medium Storage Unit Processor Transport Network Coupler Protection Scrap Shield Weapon Mining Laser Energy Gun Small Laser Energy Cannon Subdweller Beam Cannon Ballistic Gun Subdweller Machine Gun Special Weapon Mining Laser Build | -11 -10 -10 ------- Run | Yrd Mat Sub Slots Evolved . | . . . Power . | . . . Propulsion . | . . . Utility . | . . . Weapon . | . . . Parts Attached . | . . . Power . | . . . Engine . | . . . Core . | . . . Reactor . | . . . Propulsion . | . . . Treads . | . . . Leg . | . . . Wheel . | . . . Hover . | . . . Flight . | . . . Utility . | . . . Device . | . . . Storage . | . . . Processor . | . . . Hackware . | . . . Protection . | . . . Artifact . | . . . Weapon . | . . . Energy Gun . | . . . Energy Cannon . | . . . Ballistic Gun . | . . . Ballistic Cannon . | . . . Launcher . | . . . Special Weapon . | . . . Impact Weapon . | . . . Slashing Weapon . | . . . Piercing Weapon . | . . . Special Melee Weapon . | . . . Unidentified Prototypes . | . . . Parts Lost 3 | . 1 2 Power . | . . . Propulsion 2 | . 1 1 Utility 1 | . . 1 Weapon . | . . . Highest Loss Streak 2 | . 1 2 To Critical Strikes . | . . . Average Slot Usage (%) 92 | . 94 89 Engine 16 | . 16 16 Treads 4 | . 6 . Leg 8 | . 5 14 Wheel 17 | . 21 8 Device 23 | . 22 25 Storage 3 | . 6 . Processor 2 | . 3 . Protection 2 | . . 8 Energy Gun 4 | . 2 7 Ballistic Gun 3 | . . 8 Special Weapon 5 | . 7 . Naked Turns 15 | . 12 3 Heaviest Build 30 | 6 15 30 Greatest Support 46 | 20 46 20 Greatest Overweight (x) 1 | . . 1 Average Overweight (x) . | . . . Largest Inventory Capacity 6 | . 6 2 Average Capacity . | . 1 1 Most Carried 2 | . . 2 Average Carried . | . . 1 Final Capacity 2 | . 1 2 Final Carried 1 | . . 1 Class Distribution -------------------- 31% | Tunneler 23% | Subdweller 21% | Grunt 12% | Hauler 9% | Worker Dominant Class ---------------- Tunneler | -10/Materials Subdweller | -10/Subcaves Resources | -11 -10 -10 ----------- Run | Yrd Mat Sub Matter Collected . | . . . Remotely . | . . . Salvage Created 69 | . 69 . Parts 6 | . 3 3 Haulers Intercepted . | . . . Recyclers Shooed . | . . . Parts Field Recycled . | . . . Retrieved Matter . | . . . Parts Self-Destructed 1 | . . 1 Prevented . | . . . Kills | -11 -10 -10 ------- Run | Yrd Mat Sub Combat Hostiles Destroyed 3 | . 1 2 Guns 3 | . 1 2 Classes Destroyed 3 | . 2 1 Worker 2 | . 2 . Grunt 2 | . 1 1 Subdweller 1 | . . 1 Best Kill Streak 2 | . 2 1 Combat Bots Only 1 | . 1 1 Max Kills in Single Turn 1 | . 1 1 Gunslinging . | . . . Exploded . | . . . Melee . | . . . Uniques/NPCs Destroyed . | . . . Combat | -11 -10 -10 -------- Run | Yrd Mat Sub Hostile Shots Fired 70 | . 34 36 Missed 15 | . 11 4 Damage Taken 1034 | . 346 688 Core 260 | . 120 140 Absorbed by Shields . | . . . Core Remaining (%) 100 | 100 . . Volleys Fired 42 | . 16 26 Largest 1 | . 1 1 Hottest 100 | . 100 80 Shots Fired 42 | . 16 26 Gun 35 | . 13 22 Cannon 4 | . . 4 Launcher . | . . . Special 3 | . 3 . Kinetic 22 | . . 22 Thermal 20 | . 16 4 Explosive . | . . . Electromagnetic . | . . . Robot Hit Streak 18 | . 6 18 Robot Miss Streak 1 | . 1 1 Penetration Max . | . . . Secondary Targets . | . . . Shots Hit Robots 36 | . 14 22 Core Hits 10 | . 6 4 Critical Kills . | . . . Critical Parts Destroyed . | . . . Critical Strikes . | . . . Melee Attacks . | . . . Impact . | . . . Slashing . | . . . Piercing . | . . . Sneak Attacks . | . . . Combat Hostiles . | . . . Follow-up Attacks . | . . . Damage Inflicted 647 | . 197 450 Guns 504 | . 140 364 Cannons 86 | . . 86 Explosions . | . . . Melee . | . . . Ramming 9 | . 9 . Kinetic 364 | . . 364 Thermal 274 | . 188 86 Explosive . | . . . Electromagnetic . | . . . Impact . | . . . Slashing . | . . . Piercing . | . . . Highest Corruption . | . . . Average Corruption . | . . . Corruption Purged . | . . . Corruption Blocked . | . . . Overload Shots . | . . . Overflow Damage . | . . . Projectiles . | . . . Explosions . | . . . Melee . | . . . Knockbacks . | . . . Impact . | . . . Kinetic . | . . . Secondary . | . . . Self-Inflicted Damage 4 | . 4 . Shots . | . . . Rammed 2 | . 2 . Targets Rammed 2 | . 2 . Kicked . | . . . Crushed . | . . . Highest Temperature 192 | . 132 192 Average Temperature 60 | . 56 87 Received Heat Transfer 369 | . 183 186 Siege Activations . | . . . Robots Corrupted . | . . . Combat Hostiles . | . . . Parts Fried . | . . . Impact Corruptions . | . . . Robots Melted . | . . . Combat Hostiles . | . . . Parts Melted 2 | . 2 . Heat Transferred 511 | . 400 111 Parts Sabotaged . | . . . Parts Stolen . | . . . Parts Stripped . | . . . Power Chain Reactions . | . . . Alert | -11 -10 -10 ------- Run | Yrd Mat Sub Peak Influence 220 | . 220 . Initial . | . . . Average 31 | . 81 . Maximum Alert Level 1 | . 1 . Low Security (%) 96 | 100 92 . Level 1 3 | . 7 . Level 2 . | . . . Level 3 . | . . . Level 4 . | . . . Level 5 . | . . . High Security . | . . . Max Security . | . . . Squads Dispatched . | . . . Investigation . | . . . Extermination . | . . . Reinforcement . | . . . Assault . | . . . Garrison . | . . . Intercept . | . . . Searches Triggered . | . . . Construction Impeded . | . . . Haulers Reinforced . | . . . Active Scanning Responses . | . . . Cargo Convoy Interrupts . | . . . Stealth | -11 -10 -10 --------- Run | Yrd Mat Sub Distress Signals 1 | . 1 . Communications Jammed . | . . . Distress Signals . | . . . Times Spotted 23 | . 14 9 Peak Tracking Total 6 | . 6 3 Tactical Retreats 2 | . 2 . Traps | -11 -10 -10 ------- Run | Yrd Mat Sub Traps Triggered 1 | . 1 . Indirectly . | . . . Trap Hack Attempts . | . . . Triggered . | . . . Disarmed . | . . . Reprogrammed . | . . . Reused . | . . . Traps Extracted . | . . . Installed . | . . . Triggered . | . . . Machines | -11 -10 -10 ---------- Run | Yrd Mat Sub Machines Disabled . | . . . Max in Single Turn . | . . . Machines Repaired . | . . . Machines Dismantled . | . . . Machines Sabotaged . | . . . Overloaded Fab Kills . | . . . Hacking | -11 -10 -10 --------- Run | Yrd Mat Sub Machines Accessed . | . . . Terminals . | . . . Fabricators . | . . . Repair Stations . | . . . Recycling Units . | . . . Scanalyzers . | . . . Garrison Access . | . . . Total Hacks . | . . . Successful . | . . . Failed . | . . . Catastrophic . | . . . Database Lockouts . | . . . Manual . | . . . Terminals . | . . . Fabricators . | . . . Repair Stations . | . . . Recycling Units . | . . . Scanalyzers . | . . . Garrison Access . | . . . Terminal Hacks . | . . . Fabricator Hacks . | . . . Repair Station Hacks . | . . . Recycling Unit Hacks . | . . . Scanalyzer . | . . . Garrison Access Hacks . | . . . Unauthorized Hacks . | . . . Terminals . | . . . Fabricators . | . . . Repair Stations . | . . . Recycling Units . | . . . Scanalyzers . | . . . Garrison Access . | . . . Data Cores Recovered . | . . . Used . | . . . Hacking Detections . | . . . Full Trace Events . | . . . Feedback Events . | . . . Feedback Blocked . | . . . Robot Schematics Acquired . | . . . Robots Built . | . . . Authchips . | . . . Time . | . . . Total Robot Build Rating . | . . . Part Schematics Acquired . | . . . Parts Built . | . . . Authchips . | . . . Time . | . . . Total Part Build Rating . | . . . Parts Repaired . | . . . Time . | . . . Parts Recycled . | . . . Recycled Matter . | . . . Retrieved Matter . | . . . Retrieved Components . | . . . Parts Scanalyzed . | . . . Part Schematics Acquired . | . . . Parts Damaged . | . . . Bothacking | -11 -10 -10 ------------ Run | Yrd Mat Sub Used RIF Installer . | . . . Robots Hacked 2 | . 2 . Non-combat . | . . . Combat 2 | . 2 . Robot Hacks Applied 2 | . 2 . find_shortcuts 2 | . 2 . Relay Couplers Released . | . . . Fabnet Peak Effective % . | . . . Robots Rewired . | . . . Allies Hacked . | . . . Hacks Repelled . | . . . Allies | -11 -10 -10 -------- Run | Yrd Mat Sub Total Allies . | . . . Largest Group . | . . . Highest-Rated Group . | . . . Highest-Rated Ally . | . . . Total Orders . | . . . Ally Attacks . | . . . Total Damage . | . . . Kills . | . . . Allies Corrupted . | . . . Allies Melted . | . . . Intel | -11 -10 -10 ------- Run | Yrd Mat Sub Robot Analysis Total 5 | 1 3 1 Derelict Logs Recovered 1 | . . 1 Drone Launches . | . . . Drone Recoveries . | . . . Exploration | -11 -10 -10 ------------- Run | Yrd Mat Sub Turns Passed 1088 | 548 342 198 Spaces Moved 644 | 231 293 120 Core 47 | 22 21 4 Treads 39 | . 39 . Legs 76 | . 18 58 Wheels 482 | 209 215 58 Hover . | . . . Flight . | . . . Fastest Speed 50 | 50 50 50 Average Speed 90 | 77 90 117 Slowest Speed 160 | 80 160 120 Overloaded Moves . | . . . Propulsion Burnouts . | . . . Robots Hopped . | . . . Cave-ins Triggered . | . . . Exploration Rate (%) 21 | 19 32 13 Regions Visited 2 Branch Regions 1 Pre-discovered Areas 1 | . . 1 Known Exits Taken . | . . . Unknown Exits Taken 2 | 1 1 . Scrap Searched . | . . . Spaces Dug . | . . . Terrain Destroyed 1 | . . 1 Melee . | . . . Projectile 1 | . . 1 AOE . | . . . Terrain Rammed . | . . . Walls Destroyed . | . . . Machines Disabled . | . . . Actions | -11 -10 -10 --------- Run | Yrd Mat Sub Total 1098 | 600 346 152 Wait 276 | 260 12 4 Move 642 | 230 292 120 Hop . | . . . Pick Up . | . . . Fast Attach . | . . . Attach . | . . . Detach . | . . . Swap . | . . . Drop . | . . . Fire 42 | . 16 26 Melee . | . . . Ram 2 | . 2 . Kick . | . . . Crush . | . . . Escape Stasis . | . . . Rewire 2 | . 1 1 Trap . | . . . Miscellaneous 134 | 110 23 1 Route ------- -11/Scrapyard -10/Materials -10/Subcaves History --------- Turn | Location | Event 5 | -11/Scrapyard | Discovered new exit (range 15) 523 | -11/Scrapyard | Assembled infested the area 549 | -11/Scrapyard | Entered Materials 667 | -10/Materials | Discovered new exit (range 3) 891 | -10/Materials | Entered Subcaves 897 | -10/Subcaves | Learned location of Zion (-6) 960 | -10/Subcaves | Ambushed by Subdwellers from Twisted Machinery 963 | -10/Subcaves | Core integrity fell below 50% 1080 | -10/Subcaves | Core integrity fell below 20% 1089 | -10/Subcaves | Destroyed by HI-H7P(R) with Subdweller Laser Last Messages --------------- 00920_ Acquired 18 Protomatter. 00922_ Subatomizers dissect the Sub. Optics. 00960_ YN-CQ2(R) emerges from the Twisted Machinery. 00961_ Released control of G-34 Mercenary. 00962_ G-34 Mercenary reactivates. 00963_ Took control of YN-CQ2(R). 00963_ Extracted analysis data for Subdweller. 00965_ G-34 Mercenary destroyed. 00970_ Protomatter-13 decays. 00990_ Destroyed Scrap Shield. 00992_ YY-MIX(R) destroyed. 00995_ Acquired 28 Protomatter. 00997_ Scrap Shield Fragment affixed to Scrap Shield (+48). 01077_ Scrap Shield destroyed. 01082_ Released control of YN-CQ2(R). 01082_ Attempting to rewire YN-CQ2(R). 01082_ YN-CQ2(R) is rebooting, system inaccessible. 01083_ Took control of HS-YXU(R). 01083_ YN-CQ2(R) reactivates. 01085_ Sub. Monowheel destroyed. Map ----- +----------------------------------------------------+ | ?????????????????????????????????????????????????? | | ?????????????????????????????????????????????????? | | ?????????????????????????????????????????????????? | | ?????????????????????????????????????????????????? | | ?????????????????????????????????????????????????? | | ?????????????????????????????????????????????????? | | ?????????????????????????????????????????????????? | | ?????????????????????????????????????????????????? | | ?????????????????????????????????????????????????? | | ?????????????????????????????????????????????????? | | ?????????????????????????????????????????????????? | | ?????????????????????????????????????????????????? | | ?????????????????????????????????????????????????? | | ?????????????????????????????????????????????????? | | ?????????????????????????????????????????????????? | | ?????????????????????????????????????????????????? | | ?????????????????????????????????????????????????? | | ??????????????????????#####??????????????????????? | | ?????????????????????##<<<#??????????????????????? | | ?????????????????????# <<<##?????????????????????? | | ?????????????????????#< <<#?????????????????????? | | ?????????????????????#<<< +?????????????????????? | | ?????????????????????#<<< #?????????????????????? | | ?????????????????????#<< <##?????????????????????? | | ?????????????????????#<< R #?????????????????????? | | ?????????????????????# < RR######????????????????? | | ?????????????????????## < # #????????????????? | | ??????????????????????# ##????????????????? | | ??????????????????????## #; "#??#######???????? | | ???????????????????????#####< "#### ####????? | | ????????????????# # # ### < ## ##???? | | ????????????????# ####? | | ?????????????????# #? | | ???????????????# # #? | | ????????????? % ??### ### ## ## | | ????????????? ?# ??????## #??#### ## ## # | | ????????????????????????####??????##### ## | | ??????????????????????????????????????## ##? | | ???????????????????????????????????????# ### | | ???????????????????????????????????????# # | | ???????????????????????????????????????## ## | | ????????????????????????????????????????## | | ???????????????????????????????????????### | | ??????????????????????????????????????## #### | | ?????????????????????????????????????## ## ##?? | | ????????????????????????????????????## # #?? | | ????????????????????????????????????# ## #?? | | ????????????????????????????????????# " #?? | | ????????????????????????????????????# "" #?? | | ????????????????????????????????????# " ## #?? | +----------------------------------------------------+ Best States ------------- Heat Dissipation 25 Coolant Potential 50 Energy Generation 20 Energy Capacity 200 Matter Stores 98 Matter Capacity 125 Sight Range 19 Terrain Scan Range 16 Terrain Scan Density 10 Additional Mass Support 6 Armor Coverage 800 Evasion (%) 55 Recoil Reduction 2 Item Schematics ----------------- None Robot Schematics ------------------ None Fabricated ------------ Nothing Alien Tech Used ----------------- None Achievements -------------- None Challenges ------------ None Polymind | -11 -10 -10 ---------- Run | Yrd Mat Sub Hosts 7 | 1 4 2 Combat Hostiles 4 | . 2 2 Allies . | . . . Unique Host Classes 5 | 1 3 1 Average Host Suspicion 36 | 25 68 14 Unsuspicious Activity 954 | 552 156 246 Returns to Shadow 1 | . 1 . Fuzzy Dispatches . | . . . Protomatter Created 67 | . 8 59 Used 111 | 5 40 66 Decayed 13 | . . 13 Highest Spend 33 | 5 15 33 Top 5 Hosts by Kills: YN-CQ2(R) (-10/Subcaves: 2) G-34 Mercenary (-10/Materials: 1) Game ------ Seed AntimatterAluminumRailgun Manual? 0 Play Time 00:09:02 Cumulative 114.0 hours Start 2024.07.03 @ 21:11:40 End 2024.07.03 @ 21:19:28 Sessions 1 Manual Loads 0 Difficulty Rogue Special Mode Winter2022/Polymind Game No. 134 Rogue 128 Adventurer 6 Explorer 0 Win Type - Total 1 Types 1/0/0/0/0/0/0/0/0 Lore% 38 Gallery% 61 Achievement% 44 Wizard Run 0 Options --------- Layout 0 ASCII 0 Keyboard 1 Movement Numpad Keybinds 0 Fullscreen 0 Font 14/Smallcaps Map View 76x50 Zoom Use 0% Tactical HUD 1 Map Filters NONE Filters NONE Steam 1 RUN: 0b9d5530-fd35-4d5c-9a48-6d712d4efdf5